fUST/lending_fUST_20240825
["ID","MTS","AMOUNT","RATE_DAILY","PERIOD"]
[335843001,1724530239910,-150.112233,0.000134,2]
[335843002,1724530239921,-5593.9499248,0.00013441,2]
[335843003,1724530239931,-271.58172866,0.00013477,2]
[335843004,1724530239942,-666.26375878,0.00013477,2]
[335843005,1724530239954,-568.93113109,0.00013496,2]
[335843006,1724530239966,-150.112233,0.000135,2]
[335843007,1724530239977,-150.112233,0.000135,2]
[335843008,1724530239989,-202.277176,0.00013502,2]
[335843009,1724530239999,-202.277176,0.00013502,2]
[335843010,1724530240011,-1416.0,0.00013503,2]
[335843011,1724530240021,-187147.44873547,0.00013541,2]
[335843012,1724530240033,-202.277176,0.00013541,2]
[335843013,1724530240045,-202.277176,0.00013541,2]
[335843014,1724530240057,-40000.0,0.00013598,2]
[335843015,1724530240068,-156.30594485,0.00013599,2]
[335843016,1724530240078,-1228.8089282,0.000136,3]
[335843017,1724530240088,-150.112233,0.000136,2]
[335843018,1724530240099,-150.112233,0.000136,2]
[335843022,1724530240286,-150.112233,0.000136,2]
[335843025,1724530240321,-150.112233,0.000136,2]
[335843026,1724530240332,-5951.24255828,0.00013611,2]
[335843027,1724530240341,-150.0,0.00013651,2]
[335843028,1724530240350,-150.0,0.00013673,2]
[335843029,1724530240360,-150.0,0.00013673,2]
[335843030,1724530240370,-150.0,0.00013673,2]
[335843031,1724530240380,-289.492,0.00013673,2]
[335843032,1724530240391,-522.0,0.00013673,2]
[335843033,1724530240401,-449.97377135,0.00013673,2]
[335843034,1724530240412,-500.0,0.00013673,2]
[335843035,1724530240422,-500.0,0.00013673,2]
[335843036,1724530240432,-500.0,0.00013673,2]
[335843037,1724530240442,-500.0,0.00013673,2]
[335843038,1724530240452,-600.0,0.00013676,2]
[335843039,1724530240464,-155.0,0.0001368,2]
[335843040,1724530240474,-209.7598205,0.00013697,2]
[335843041,1724530240483,-500.0,0.00013698,2]
[335843042,1724530240493,-620.0,0.00013698,2]
[335843043,1724530240503,-500.0,0.00013698,2]
[335843044,1724530240513,-500.0,0.00013698,2]
[335843045,1724530240523,-500.00000001,0.00013698,2]
[335843046,1724530240532,-155.12815248,0.00013698,2]
[335843047,1724530240542,-500.0,0.00013698,2]
[335843049,1724530240552,-616.21891281,0.00013698,2]
[335843051,1724530240563,-500.0,0.00013698,2]
[335843052,1724530240572,-500.0,0.00013698,2]
[335843053,1724530240582,-500.0,0.00013698,2]
[335843054,1724530240591,-500.0,0.00013698,2]
[335843055,1724530240600,-506.99417169,0.00013698,2]
[335843057,1724530240611,-500.0,0.00013698,2]
[335843058,1724530240622,-500.0,0.00013698,2]
[335843059,1724530240639,-500.0,0.00013698,2]
[335843060,1724530240655,-500.0,0.00013698,2]
[335843061,1724530240665,-500.0,0.00013698,2]
[335843062,1724530240674,-500.0,0.00013698,2]
[335843063,1724530240683,-502.74548938,0.00013698,2]
[335843064,1724530240694,-1079.45,0.00013698,2]
[335843065,1724530240703,-500.0,0.00013698,2]
[335843066,1724530240713,-500.0,0.00013698,2]
[335843068,1724530240723,-500.0,0.00013698,2]
[335843069,1724530240734,-500.0,0.00013698,2]
[335843070,1724530240743,-331.58030529,0.00013698,2]
[335843071,1724530240753,-500.0,0.00013698,2]
[335843072,1724530240762,-502.79952749,0.00013698,2]
[335843073,1724530240771,-500.0,0.00013698,2]
[335843074,1724530240781,-500.0,0.00013698,2]
[335843075,1724530240792,-765.31,0.00013698,2]
[335843076,1724530240803,-500.0,0.00013698,2]
[335843077,1724530240814,-500.0,0.00013698,2]
[335843078,1724530240823,-556.19,0.00013698,2]
[335843079,1724530240835,-500.0,0.00013698,2]
[335843080,1724530240847,-500.0,0.00013698,2]
[335843081,1724530240857,-500.0,0.00013698,2]
[335843082,1724530240867,-500.0,0.00013698,2]
[335843083,1724530240877,-681.74,0.00013698,2]
[335843084,1724530240886,-800.24,0.00013698,2]
[335843085,1724530240896,-500.0,0.00013698,2]
[335843086,1724530240906,-513.24810199,0.00013698,2]
[335843087,1724530240916,-500.0,0.00013698,2]
[335843088,1724530240925,-500.0,0.00013698,2]
[335843089,1724530240934,-500.0,0.00013698,2]
[335843090,1724530240943,-500.0,0.00013698,2]
[335843091,1724530240952,-500.0,0.00013698,2]
[335843092,1724530240962,-500.0,0.00013698,2]
[335843093,1724530240971,-500.0,0.00013698,2]
[335843094,1724530240981,-500.0,0.00013698,2]
[335843095,1724530240990,-500.0,0.00013698,2]
[335843096,1724530240999,-500.0,0.00013698,2]
[335843097,1724530241008,-502.12274204,0.00013698,2]
[335843098,1724530241018,-501.20213021,0.00013698,2]
[335843099,1724530241029,-502.79844456,0.00013698,2]
[335843100,1724530241039,-501.48307279,0.00013698,2]
[335843101,1724530241050,-500.0,0.00013698,2]
[335843102,1724530241060,-585.51,0.00013698,2]
[335843103,1724530241069,-500.0,0.00013698,2]
[335843104,1724530241078,-502.2181315,0.00013698,2]
[335843105,1724530241088,-547.22665791,0.00013698,2]
[335843106,1724530241097,-664.55,0.00013698,2]
[335843107,1724530241106,-500.0,0.00013698,2]
[335843108,1724530241116,-500.0,0.00013698,2]
[335843109,1724530241125,-500.0,0.00013698,2]
[335843110,1724530241134,-500.0,0.00013698,2]
[335843111,1724530241143,-601.53830752,0.00013698,2]
[335843112,1724530241153,-500.0,0.00013698,2]
[335843113,1724530241162,-500.0,0.00013698,2]
[335843114,1724530241172,-500.0,0.00013698,2]
[335843115,1724530241181,-598.15978282,0.00013698,2]
[335843116,1724530241190,-500.0,0.00013698,2]
[335843117,1724530241199,-572.18,0.00013698,2]
[335843118,1724530241208,-500.0,0.00013698,2]
[335843119,1724530241217,-652.42,0.00013698,2]
[335843120,1724530241226,-707.4,0.00013698,2]
[335843121,1724530241235,-500.0,0.00013698,2]
[335843122,1724530241244,-500.0,0.00013698,2]
[335843123,1724530241254,-317.59539575,0.00013698,2]
[335843124,1724530241263,-503.90593166,0.00013698,2]
[335843125,1724530241276,-500.0,0.00013698,2]
[335843126,1724530241285,-500.0,0.00013698,2]
[335843127,1724530241294,-500.0,0.00013698,2]
[335843128,1724530241303,-500.0,0.00013698,2]
[335843129,1724530241312,-500.71268256,0.00013698,2]
[335843130,1724530241321,-500.0,0.00013698,2]
[335843131,1724530241331,-500.0,0.00013698,2]
[335843132,1724530241341,-533.48,0.00013698,2]
[335843133,1724530241351,-500.0,0.00013698,2]
[335843134,1724530241360,-500.0,0.00013698,2]
[335843135,1724530241371,-500.0,0.00013698,2]
[335843136,1724530241380,-520.07231296,0.00013698,2]
[335843137,1724530241390,-534.63057297,0.00013698,2]
[335843138,1724530241399,-503.11997067,0.00013698,2]
[335843139,1724530241408,-500.0,0.00013698,2]
[335843140,1724530241417,-500.0,0.00013698,2]
[335843141,1724530241426,-500.0,0.00013698,2]
[335843142,1724530241435,-500.0,0.00013698,2]
[335843143,1724530241445,-622.15,0.00013698,2]
[335843144,1724530241457,-500.0,0.00013698,2]
[335843145,1724530241467,-500.0,0.00013698,2]
[335843146,1724530241476,-500.0,0.00013698,2]
[335843147,1724530241485,-500.0,0.00013698,2]
[335843148,1724530241495,-500.0,0.00013698,2]
[335843149,1724530241506,-500.0,0.00013698,2]
[335843150,1724530241516,-500.0,0.00013698,2]
[335843151,1724530241527,-500.0,0.00013698,2]
[335843152,1724530241538,-500.0,0.00013698,2]
[335843153,1724530241548,-500.0,0.00013698,2]
[335843154,1724530241559,-500.0,0.00013698,2]
[335843155,1724530241568,-500.0,0.00013698,2]
[335843156,1724530241577,-500.0,0.00013698,2]
[335843157,1724530241587,-500.0,0.00013698,2]
[335843158,1724530241596,-2000.51,0.00013698,2]
[335843159,1724530241605,-261.76018332,0.00013698,2]
[335843160,1724530241615,-500.0,0.00013698,2]
[335843161,1724530241624,-500.0,0.00013698,2]
[335843162,1724530241633,-500.0,0.00013698,2]
[335843163,1724530241642,-500.0,0.00013698,2]
[335843164,1724530241656,-500.0,0.00013698,2]
[335843165,1724530241666,-500.0,0.00013698,2]
[335843166,1724530241675,-500.0,0.00013698,2]
[335843167,1724530241684,-500.0,0.00013698,2]
[335843168,1724530241694,-716.22,0.00013698,2]
[335843169,1724530241703,-501.26450768,0.00013698,2]
[335843170,1724530241712,-500.0,0.00013698,2]
[335843171,1724530241722,-500.0,0.00013698,2]
[335843172,1724530241732,-500.0,0.00013698,2]
[335843173,1724530241742,-500.0,0.00013698,2]
[335843174,1724530241751,-500.0,0.00013698,2]
[335843175,1724530241761,-500.0,0.00013698,2]
[335843176,1724530241770,-500.0,0.00013698,2]
[335843177,1724530241779,-500.0,0.00013698,2]
[335843178,1724530241789,-500.0,0.00013698,2]
[335843179,1724530241799,-500.0,0.00013698,2]
[335843180,1724530241809,-500.0,0.00013698,2]
[335843181,1724530241819,-500.0,0.00013698,2]
[335843182,1724530241829,-500.0,0.00013698,2]
[335843183,1724530241841,-500.0,0.00013698,2]
[335843184,1724530241852,-500.0,0.00013698,2]
[335843185,1724530241862,-500.0,0.00013698,2]
[335843186,1724530241871,-500.0,0.00013698,2]
[335843187,1724530241881,-500.0,0.00013698,2]
[335843188,1724530241890,-500.0,0.00013698,2]
[335843189,1724530241900,-500.0,0.00013698,2]
[335843190,1724530241910,-801.05,0.00013698,2]
[335843191,1724530241920,-516.55611504,0.00013698,2]
[335843192,1724530241933,-500.0,0.00013698,2]
[335843193,1724530241944,-500.0,0.00013698,2]
[335843194,1724530241955,-500.0,0.00013698,2]
[335843195,1724530241965,-500.0,0.00013698,2]
[335843196,1724530241975,-500.0,0.00013698,2]
[335843197,1724530241984,-500.0,0.00013698,2]
[335843198,1724530241994,-500.0,0.00013698,2]
[335843199,1724530242005,-500.0,0.00013698,2]
[335843200,1724530242014,-500.0,0.00013698,2]
[335843201,1724530242023,-500.0,0.00013698,2]
[335843202,1724530242033,-500.0,0.00013698,2]
[335843203,1724530242044,-500.0,0.00013698,2]
[335843204,1724530242053,-500.57804816,0.00013698,2]
[335843205,1724530242064,-500.0,0.00013698,2]
[335843206,1724530242074,-500.0,0.00013698,2]
[335843207,1724530242083,-500.0,0.00013698,2]
[335843208,1724530242093,-500.0,0.00013698,2]
[335843209,1724530242102,-763.21,0.00013698,2]
[335843210,1724530242111,-783.39,0.00013698,2]
[335843211,1724530242120,-500.0,0.00013698,2]
[335843212,1724530242129,-678.6,0.00013698,2]
[335843213,1724530242139,-500.0,0.00013698,2]
[335843214,1724530242149,-500.0,0.00013698,2]
[335843215,1724530242158,-500.0,0.00013698,2]
[335843216,1724530242168,-500.0,0.00013698,2]
[335843217,1724530242178,-500.0,0.00013698,2]
[335843218,1724530242188,-500.0,0.00013698,2]
[335843219,1724530242198,-500.0,0.00013698,2]
[335843220,1724530242207,-500.0,0.00013698,2]
[335843221,1724530242217,-500.0,0.00013698,2]
[335843222,1724530242226,-500.0,0.00013698,2]
[335843223,1724530242235,-500.0,0.00013698,2]
[335843224,1724530242245,-500.0,0.00013698,2]
[335843225,1724530242254,-505.24701066,0.00013698,2]
[335843226,1724530242263,-500.0,0.00013698,2]
[335843227,1724530242273,-500.0,0.00013698,2]
[335843228,1724530242282,-500.0,0.00013698,2]
[335843229,1724530242291,-500.0,0.00013698,2]
[335843230,1724530242301,-500.0,0.00013698,2]
[335843231,1724530242310,-574.59,0.00013698,2]
[335843232,1724530242319,-500.0,0.00013698,2]
[335843233,1724530242328,-581.33552731,0.00013698,2]
[335843234,1724530242338,-500.0,0.00013698,2]
[335843235,1724530242347,-500.0,0.00013698,2]
[335843236,1724530242356,-1086.62,0.00013698,2]
[335843237,1724530242366,-689.38,0.00013698,2]
[335843238,1724530242375,-1259.33,0.00013698,2]
[335843239,1724530242385,-509.51694536,0.00013698,2]
[335843240,1724530242394,-500.0,0.00013698,2]
[335843241,1724530242405,-500.0,0.00013698,2]
[335843242,1724530242414,-646.54,0.00013698,2]
[335843243,1724530242424,-500.0,0.00013698,2]
[335843244,1724530242433,-500.0,0.00013698,2]
[335843245,1724530242442,-676.35,0.00013698,2]
[335843246,1724530242452,-500.0,0.00013698,2]
[335843247,1724530242461,-657.86,0.00013698,2]
[335843248,1724530242471,-500.0,0.00013698,2]
[335843249,1724530242480,-500.0,0.00013698,2]
[335843250,1724530242490,-982.85,0.00013698,2]
[335843251,1724530242499,-1494.61,0.00013698,2]
[335843252,1724530242508,-500.0,0.00013698,2]
[335843253,1724530242517,-500.0,0.00013698,2]
[335843254,1724530242527,-500.0,0.00013698,2]
[335843255,1724530242536,-500.0,0.00013698,2]
[335843256,1724530242546,-3067.3,0.00013698,2]
[335843257,1724530242555,-260.0,0.00013698,2]
[335843258,1724530242566,-674.86,0.00013698,2]
[335843259,1724530242577,-500.0,0.00013698,2]
[335843260,1724530242587,-258.0,0.00013698,2]
[335843261,1724530242597,-500.0,0.00013698,2]
[335843262,1724530242606,-500.0,0.00013698,2]
[335843263,1724530242617,-500.0,0.00013698,2]
[335843264,1724530242628,-566.9,0.00013698,2]
[335843265,1724530242637,-500.0,0.00013698,2]
[335843266,1724530242646,-756.6,0.00013698,2]
[335843267,1724530242659,-500.0,0.00013698,2]
[335843268,1724530242669,-568.21022219,0.00013698,2]
[335843269,1724530242679,-552.55,0.00013698,2]
[335843270,1724530242688,-552.55,0.00013698,2]
[335843271,1724530242699,-552.55,0.00013698,2]
[335843272,1724530242708,-552.55,0.00013698,2]
[335843273,1724530242717,-552.55,0.00013698,2]
[335843274,1724530242726,-552.55,0.00013698,2]
[335843275,1724530242735,-500.0,0.00013698,2]
[335843276,1724530242745,-552.55,0.00013698,2]
[335843277,1724530242756,-552.55,0.00013698,2]
[335843278,1724530242765,-552.55,0.00013698,2]
[335843279,1724530242774,-552.55,0.00013698,2]
[335843280,1724530242783,-552.55,0.00013698,2]
[335843281,1724530242793,-552.55,0.00013698,2]
[335843282,1724530242802,-552.55,0.00013698,2]
[335843283,1724530242811,-552.55,0.00013698,2]
[335843284,1724530242821,-552.55,0.00013698,2]
[335843285,1724530242830,-552.55,0.00013698,2]
[335843286,1724530242839,-552.55,0.00013698,2]
[335843287,1724530242849,-552.55,0.00013698,2]
[335843288,1724530242859,-801.17,0.00013698,2]
[335843289,1724530242868,-552.55,0.00013698,2]
[335843290,1724530242878,-552.55,0.00013698,2]
[335843291,1724530242887,-552.55,0.00013698,2]
[335843292,1724530242897,-552.55,0.00013698,2]
[335843293,1724530242906,-552.55,0.00013698,2]
[335843294,1724530242915,-552.55592925,0.00013698,2]
[335843295,1724530242924,-500.0,0.00013698,2]
[335843296,1724530242934,-500.0,0.00013698,2]
[335843297,1724530242944,-500.0,0.00013698,2]
[335843298,1724530242953,-150.0,0.00013698,2]
[335843299,1724530242963,-500.0,0.00013698,2]
[335843300,1724530242972,-500.0,0.00013698,2]
[335843301,1724530242982,-500.0,0.00013698,2]
[335843302,1724530242991,-500.0,0.00013698,2]
[335843303,1724530243000,-500.0,0.00013698,2]
[335843304,1724530243010,-500.0,0.00013698,2]
[335843305,1724530243019,-500.0,0.00013698,2]
[335843306,1724530243029,-500.0,0.00013698,2]
[335843307,1724530243039,-500.0,0.00013698,2]
[335843308,1724530243048,-500.0,0.00013698,2]
[335843309,1724530243057,-500.0,0.00013698,2]
[335843310,1724530243067,-500.0,0.00013698,2]
[335843311,1724530243076,-500.0,0.00013698,2]
[335843313,1724530243085,-500.0,0.00013698,2]
[335843314,1724530243094,-500.0,0.00013698,2]
[335843316,1724530243103,-500.0,0.00013698,2]
[335843317,1724530243112,-500.0,0.00013698,2]
[335843318,1724530243121,-500.0,0.00013698,2]
[335843319,1724530243134,-500.0,0.00013698,2]
[335843320,1724530243144,-500.0,0.00013698,2]
[335843321,1724530243153,-500.0,0.00013698,2]
[335843322,1724530243163,-500.0,0.00013698,2]
[335843323,1724530243173,-500.0,0.00013698,2]
[335843324,1724530243182,-500.0,0.00013698,2]
[335843326,1724530243192,-500.0,0.00013698,2]
[335843328,1724530243201,-500.0,0.00013698,2]
[335843330,1724530243210,-500.0,0.00013698,2]
[335843331,1724530243219,-500.0,0.00013698,2]
[335843332,1724530243229,-500.0,0.00013698,2]
[335843333,1724530243238,-834.48,0.00013698,2]
[335843334,1724530243247,-500.0,0.00013698,2]
[335843335,1724530243256,-584.22870234,0.00013698,2]
[335843336,1724530243265,-500.0,0.00013698,2]
[335843338,1724530243274,-500.0,0.00013698,2]
[335843340,1724530243283,-502.89244034,0.00013698,2]
[335843342,1724530243293,-500.0,0.00013698,2]
[335843344,1724530243302,-500.0,0.00013698,2]
[335843345,1724530243311,-500.0,0.00013698,2]
[335843346,1724530243320,-500.0,0.00013698,2]
[335843347,1724530243329,-930.76,0.00013698,2]
[335843348,1724530243339,-657.38,0.00013698,2]
[335843349,1724530243348,-500.0,0.00013698,2]
[335843350,1724530243357,-500.0,0.00013698,2]
[335843352,1724530243366,-603.96,0.00013698,2]
[335843354,1724530243376,-500.0,0.00013698,2]
[335843356,1724530243386,-522.31,0.00013698,2]
[335843357,1724530243395,-500.0,0.00013698,2]
[335843359,1724530243405,-500.0,0.00013698,2]
[335843360,1724530243414,-500.0,0.00013698,2]
[335843361,1724530243423,-500.0,0.00013698,2]
[335843362,1724530243433,-500.0,0.00013698,2]
[335843363,1724530243442,-500.0,0.00013698,2]
[335843364,1724530243452,-619.99,0.00013698,2]
[335843365,1724530243462,-500.0,0.00013698,2]
[335843366,1724530243471,-653.29,0.00013698,2]
[335843367,1724530243481,-590.64,0.00013698,2]
[335843368,1724530243491,-1981.92,0.00013698,2]
[335843369,1724530243500,-500.0,0.00013698,2]
[335843370,1724530243510,-500.0,0.00013698,2]
[335843371,1724530243520,-538.66026253,0.00013698,2]
[335843372,1724530243529,-500.0,0.00013698,2]
[335843373,1724530243538,-500.0,0.00013698,2]
[335843374,1724530243548,-534.06379751,0.00013698,2]
[335843375,1724530243557,-500.0,0.00013698,2]
[335843376,1724530243567,-500.0,0.00013698,2]
[335843377,1724530243577,-1041.54,0.00013698,2]
[335843378,1724530243586,-449.81063824,0.00013698,2]
[335843379,1724530243595,-553.29,0.00013698,2]
[335843380,1724530243604,-500.0,0.00013698,2]
[335843381,1724530243614,-500.0,0.00013698,2]
[335843382,1724530243624,-500.0,0.00013698,2]
[335843383,1724530243633,-500.0,0.00013698,2]
[335843384,1724530243642,-500.0,0.00013698,2]
[335843385,1724530243654,-2532.97,0.00013698,2]
[335843386,1724530243663,-840.8,0.00013698,2]
[335843387,1724530243672,-851.81,0.00013698,2]
[335843388,1724530243682,-930.45,0.00013698,2]
[335843389,1724530243691,-562.57,0.00013698,2]
[335843390,1724530243700,-500.0,0.00013698,2]
[335843391,1724530243709,-500.0,0.00013698,2]
[335843392,1724530243719,-500.0,0.00013698,2]
[335843393,1724530243731,-219.46184343,0.00013698,2]
[335843394,1724530243742,-1168.22,0.00013698,2]
[335843395,1724530243752,-500.0,0.00013698,2]
[335843396,1724530243762,-500.0,0.00013698,2]
[335843397,1724530243771,-500.0,0.00013698,2]
[335843398,1724530243780,-500.0,0.00013698,2]
[335843399,1724530243790,-1377.42,0.00013698,2]
[335843400,1724530243799,-500.0,0.00013698,2]
[335843401,1724530243808,-546.67,0.00013698,2]
[335843402,1724530243820,-500.0,0.00013698,2]
[335843403,1724530243831,-500.0,0.00013698,2]
[335843404,1724530243843,-990.53,0.00013698,2]
[335843405,1724530243854,-1453.04,0.00013698,2]
[335843406,1724530243864,-500.0,0.00013698,2]
[335843407,1724530243876,-583.68,0.00013698,2]
[335843408,1724530243885,-524.29,0.00013698,2]
[335843410,1724530243896,-557.09,0.00013698,2]
[335843412,1724530243908,-1004.5,0.00013698,2]
[335843414,1724530243917,-500.0,0.00013698,2]
[335843416,1724530243928,-530.01,0.00013698,2]
[335843417,1724530243938,-500.0,0.00013698,2]
[335843418,1724530243950,-500.0,0.00013698,2]
[335843419,1724530243960,-500.0,0.00013698,2]
[335843420,1724530243971,-500.0,0.00013698,2]
[335843421,1724530243980,-500.0,0.00013698,2]
[335843423,1724530243989,-842.24,0.00013698,2]
[335843424,1724530243998,-901.51,0.00013698,2]
[335843425,1724530244008,-500.0,0.00013698,2]
[335843426,1724530244020,-611.67,0.00013698,2]
[335843427,1724530244031,-934.66,0.00013698,2]
[335843428,1724530244040,-500.0,0.00013698,2]
[335843429,1724530244051,-500.0,0.00013698,2]
[335843430,1724530244061,-1424.34,0.00013698,2]
[335843431,1724530244070,-588.09,0.00013698,2]
[335843432,1724530244080,-2391.04,0.00013698,2]
[335843433,1724530244090,-500.0,0.00013698,2]
[335843434,1724530244099,-611.07,0.00013698,2]
[335843435,1724530244108,-500.0,0.00013698,2]
[335843436,1724530244117,-1277.17,0.00013698,2]
[335843437,1724530244127,-500.0,0.00013698,2]
[335843438,1724530244137,-994.03,0.00013698,2]
[335843439,1724530244146,-500.0,0.00013698,2]
[335843440,1724530244155,-609.33,0.00013698,2]
[335843441,1724530244164,-500.0,0.00013698,2]
[335843442,1724530244174,-500.0,0.00013698,2]
[335843443,1724530244184,-586.91,0.00013698,2]
[335843444,1724530244194,-594.56,0.00013698,2]
[335843445,1724530244203,-500.0,0.00013698,2]
[335843446,1724530244212,-962.18,0.00013698,2]
[335843447,1724530244222,-500.0,0.00013698,2]
[335843448,1724530244231,-608.51,0.00013698,2]
[335843449,1724530244240,-1079.11,0.00013698,2]
[335843450,1724530244249,-500.0,0.00013698,2]
[335843451,1724530244259,-500.0,0.00013698,2]
[335843452,1724530244268,-889.94,0.00013698,2]
[335843453,1724530244277,-500.0,0.00013698,2]
[335843454,1724530244287,-628.11,0.00013698,2]
[335843455,1724530244296,-835.62,0.00013698,2]
[335843456,1724530244305,-500.0,0.00013698,2]
[335843457,1724530244314,-500.0,0.00013698,2]
[335843458,1724530244323,-1136.81,0.00013698,2]
[335843459,1724530244333,-500.0,0.00013698,2]
[335843460,1724530244342,-500.0,0.00013698,2]
[335843461,1724530244352,-887.04,0.00013698,2]
[335843462,1724530244362,-737.66,0.00013698,2]
[335843463,1724530244374,-500.0,0.00013698,2]
[335843464,1724530244393,-500.0,0.00013698,2]
[335843465,1724530244402,-500.0,0.00013698,2]
[335843466,1724530244411,-500.0,0.00013698,2]
[335843467,1724530244594,-852.44,0.00013698,2]
[335843468,1724530244605,-1201.27,0.00013698,2]
[335843469,1724530244617,-500.0,0.00013698,2]
[335843470,1724530244627,-2755.3,0.00013698,2]
[335843471,1724530244637,-500.0,0.00013698,2]
[335843472,1724530244651,-764.01,0.00013698,2]
[335843473,1724530244661,-500.0,0.00013698,2]
[335843474,1724530244671,-1313.2,0.00013698,2]
[335843475,1724530244683,-859.33,0.00013698,2]
[335843476,1724530244694,-500.0,0.00013698,2]
[335843477,1724530244704,-718.39,0.00013698,2]
[335843478,1724530244714,-500.0,0.00013698,2]
[335843479,1724530244725,-542.81,0.00013698,2]
[335843480,1724530244736,-934.98,0.00013698,2]
[335843481,1724530244748,-1106.51,0.00013698,2]
[335843482,1724530244759,-601.84,0.00013698,2]
[335843483,1724530244768,-500.0,0.00013698,2]
[335843484,1724530244778,-500.0,0.00013698,2]
[335843485,1724530244787,-510.76,0.00013698,2]
[335843486,1724530244797,-738.66,0.00013698,2]
[335843487,1724530244807,-500.0,0.00013698,2]
[335843488,1724530244817,-500.0,0.00013698,2]
[335843489,1724530244827,-1409.66,0.00013698,2]
[335843490,1724530244837,-500.0,0.00013698,2]
[335843491,1724530244846,-500.0,0.00013698,2]
[335843492,1724530244856,-500.0,0.00013698,2]
[335843493,1724530244865,-500.0,0.00013698,2]
[335843494,1724530244876,-500.0,0.00013698,2]
[335843495,1724530244885,-500.0,0.00013698,2]
[335843496,1724530244895,-500.0,0.00013698,2]
[335843497,1724530244905,-1157.83,0.00013698,2]
[335843498,1724530244914,-1909.11,0.00013698,2]
[335843499,1724530244924,-500.0,0.00013698,2]
[335843500,1724530244933,-500.0,0.00013698,2]
[335843501,1724530244942,-502.04300891,0.00013698,2]
[335843502,1724530244952,-654.2,0.00013698,2]
[335843503,1724530244962,-500.0,0.00013698,2]
[335843504,1724530244973,-500.0,0.00013698,2]
[335843505,1724530244982,-500.0,0.00013698,2]
[335843506,1724530244992,-500.0,0.00013698,2]
[335843507,1724530245001,-500.0,0.00013698,2]
[335843508,1724530245011,-1421.81,0.00013698,2]
[335843509,1724530245022,-500.0,0.00013698,2]
[335843510,1724530245032,-500.0,0.00013698,2]
[335843511,1724530245042,-500.0,0.00013698,2]
[335843512,1724530245051,-1361.11,0.00013698,2]
[335843513,1724530245060,-500.0,0.00013698,2]
[335843514,1724530245070,-500.0,0.00013698,2]
[335843515,1724530245079,-1173.12,0.00013698,2]
[335843516,1724530245089,-785.18,0.00013698,2]
[335843517,1724530245098,-500.0,0.00013698,2]
[335843518,1724530245108,-500.0,0.00013698,2]
[335843519,1724530245118,-500.0,0.00013698,2]
[335843520,1724530245128,-780.67,0.00013698,2]
[335843521,1724530245137,-500.0,0.00013698,2]
[335843522,1724530245147,-500.0,0.00013698,2]
[335843523,1724530245156,-500.0,0.00013698,2]
[335843524,1724530245166,-500.0,0.00013698,2]
[335843525,1724530245175,-500.0,0.00013698,2]
[335843526,1724530245184,-500.0,0.00013698,2]
[335843527,1724530245194,-549.71,0.00013698,2]